[Event "XI Continental-ch America 2016"]
[Site "San Salvador"]
[Date "2016.05.31"]
[Round "6"]
[White "Sanchez, Roberto Carlos"]
[Black "Ortiz Suarez, Isan Reynaldo"]
[Result "1-0"]
[ECO "A04"]
[WhiteElo "2397"]
[BlackElo "2578"]
[PlyCount "67"]
[EventDate "2016.??.??"]
[EventCountry "ESA"]
[TimeControl "40/5400+30:1800+30"]
[WhiteClock "0:12:32"]
[BlackClock "0:19:00"]

1. Nf3 {[%emt 0:09:06]} c5 {[%emt 0:00:20]} 2. c4 {[%emt 0:00:32]} Nc6 {
[%emt 0:00:13]} 3. Nc3 {[%emt 0:00:11]} e5 {[%emt 0:00:53]} 4. g3 {[%emt 0:00:
10]} g6 {[%emt 0:01:33]} 5. Bg2 {[%emt 0:00:13]} Bg7 {[%emt 0:00:07]} 6. h4 {
[%emt 0:01:44]} h6 {[%emt 0:01:36]} 7. d3 {[%emt 0:00:27]} d6 {[%emt 0:01:09]}
8. h5 {[%emt 0:00:50]} g5 {[%emt 0:00:06]} 9. a3 {[%emt 0:03:09]} a5 {[%emt 0:
02:47]} 10. Nd5 {[%emt 0:04:41]} Nce7 {[%emt 0:01:13]} 11. Nc3 {[%emt 0:16:57]}
Nf6 {[%emt 0:03:31]} 12. Rb1 {[%emt 0:01:47]} Bd7 {[%emt 0:06:30]} 13. b4 {
[%emt 0:02:26]} axb4 {[%emt 0:00:39]} 14. axb4 {[%emt 0:00:04]} cxb4 {[%emt 0:
00:08]} 15. Rxb4 {[%emt 0:00:09]} Bc6 {[%emt 0:08:33]} 16. Bd2 {[%emt 0:09:55]}
O-O {[%emt 0:04:49]} 17. Rb1 {[%emt 0:14:56]} Nh7 {[%emt 0:09:53]} 18. e4 {
[%emt 0:03:21]} f5 {[%emt 0:00:25]} 19. exf5 {[%emt 0:00:53]} Nxf5 {[%emt 0:02:
51]} 20. Ne4 {[%emt 0:01:32]} Nf6 {[%emt 0:10:01]} 21. Nxf6+ {[%emt 0:00:29]}
Qxf6 {[%emt 0:00:17]} 22. O-O {[%emt 0:00:53]} Qf7 {[%emt 0:06:29]} 23. Nh2 {
[%emt 0:00:58]} Ra2 {[%emt 0:01:16]} 24. Bxc6 {[%emt 0:03:01]} bxc6 {[%emt 0:
00:07]} 25. Bc3 {[%emt 0:00:12]} Ra3 {[%emt 0:15:48]} 26. Bb2 {[%emt 0:02:02]}
Ra7 {[%emt 0:00:07]} 27. Ng4 {[%emt 0:04:16]} Rb7 {[%emt 0:01:38]} 28. Ne3 {
[%emt 0:02:44]} Nxe3 {[%emt 0:03:48]} 29. fxe3 {[%emt 0:00:08]} Qxf1+ {[%emt 0:
00:15]} 30. Qxf1 {[%emt 0:00:03]} Rxf1+ {[%emt 0:00:04]} 31. Kxf1 {[%emt 0:00:
07]} e4 {[%emt 0:00:12]} 32. d4 {[%emt 0:00:04]} c5 {[%emt 0:00:06]} 33. dxc5 {
[%emt 0:05:55]} dxc5 {[%emt 0:00:06]} 34. Bc1 {[%emt 0:00:33]} 1-0

[Event "XI Continental-ch America 2016"]
[Site "San Salvador"]
[Date "2016.06.01"]
[Round "7"]
[White "Pichot, Alan"]
[Black "Bruzon Batista, Lazaro"]
[Result "1/2-1/2"]
[ECO "C65"]
[WhiteElo "2532"]
[BlackElo "2681"]
[PlyCount "67"]
[EventDate "2016.??.??"]
[EventCountry "ESA"]
[TimeControl "40/5400+30:1800+30"]
[WhiteClock "0:01:56"]
[BlackClock "0:26:39"]

1. e4 {[%emt 0:00:00]} e5 {[%emt 0:00:00]} 2. Nf3 {[%emt 0:00:00]} Nc6 {
[%emt 0:00:00]} 3. Bb5 {[%emt 0:00:00]} Nf6 {[%emt 0:00:00]} 4. d3 {[%emt 0:02:
09]} d6 {[%emt 0:01:37]} 5. c3 {[%emt 0:00:57]} Be7 {[%emt 0:00:31]} 6. O-O {
[%emt 0:00:58]} O-O {[%emt 0:00:07]} 7. Re1 {[%emt 0:01:23]} a6 {[%emt 0:00:31]
} 8. Ba4 {[%emt 0:00:36]} b5 {[%emt 0:03:47]} 9. Bc2 {[%emt 0:02:51]} d5 {
[%emt 0:00:17]} 10. a4 {[%emt 0:03:09]} dxe4 {[%emt 0:08:10]} 11. dxe4 {
[%emt 0:00:15]} Qxd1 {[%emt 0:02:23]} 12. Rxd1 {[%emt 0:00:07]} b4 {[%emt 0:00:
29]} 13. Bg5 {[%emt 0:08:34]} Be6 {[%emt 0:07:55]} 14. Nbd2 {[%emt 0:02:36]}
Rfb8 {[%emt 0:10:26]} 15. Bd3 {[%emt 0:07:17]} bxc3 {[%emt 0:05:48]} 16. bxc3 {
[%emt 0:00:10]} Bc5 {[%emt 0:00:03]} 17. Bxf6 {[%emt 0:06:16]} gxf6 {[%emt 0:
00:02]} 18. Bc4 {[%emt 0:02:55]} Na5 {[%emt 0:03:25]} 19. Bd5 {[%emt 0:04:07]}
Ra7 {[%emt 0:07:19]} 20. Rab1 {[%emt 0:08:43]} Rb6 {[%emt 0:01:04]} 21. Bxe6 {
[%emt 0:06:05]} fxe6 {[%emt 0:00:11]} 22. Kf1 {[%emt 0:10:09]} Ra8 {[%emt 0:04:
01]} 23. Ke2 {[%emt 0:02:42]} Rc6 {[%emt 0:01:33]} 24. g4 {[%emt 0:08:20]} Bb6
{[%emt 0:02:45]} 25. g5 {[%emt 0:01:55]} Kf7 {[%emt 0:10:51]} 26. Nb3 {[%emt 0:
00:56]} Re8 {[%emt 0:04:30]} 27. Rd7+ {[%emt 0:07:10]} Re7 {[%emt 0:00:33]} 28.
gxf6 {[%emt 0:00:16]} Kxf6 {[%emt 0:00:30]} 29. Nxa5 {[%emt 0:05:21]} Bxa5 {
[%emt 0:00:10]} 30. Nxe5 {[%emt 0:03:59]} Rxc3 {[%emt 0:00:36]} 31. Ng4+ {
[%emt 0:01:12]} Kf7 {[%emt 0:00:04]} 32. Ne5+ {[%emt 0:03:38]} Kf6 {[%emt 0:00:
08]} 33. Ng4+ {[%emt 0:00:14]} Kf7 {[%emt 0:00:05]} 34. Ne5+ {[%emt 0:00:04]}
1/2-1/2

[Event "XI Continental-ch America 2016"]
[Site "San Salvador"]
[Date "2016.06.01"]
[Round "7"]
[White "Quintiliano, Renato"]
[Black "Arenas, David"]
[Result "1/2-1/2"]
[ECO "E91"]
[WhiteElo "2441"]
[BlackElo "2496"]
[PlyCount "97"]
[EventDate "2016.??.??"]
[EventCountry "ESA"]
[TimeControl "40/5400+30:1800+30"]
[WhiteClock "0:20:27"]
[BlackClock "0:35:08"]

1. d4 {[%emt 0:00:00]} Nf6 {[%emt 0:00:00]} 2. c4 {[%emt 0:00:08]} g6 {[%emt 0:
00:31]} 3. Nc3 {[%emt 0:00:37]} Bg7 {[%emt 0:00:07]} 4. e4 {[%emt 0:00:24]} d6
{[%emt 0:00:04]} 5. Nf3 {[%emt 0:01:03]} O-O {[%emt 0:00:09]} 6. Be2 {[%emt 0:
00:49]} c5 {[%emt 0:00:12]} 7. O-O {[%emt 0:04:12]} cxd4 {[%emt 0:02:07]} 8.
Nxd4 {[%emt 0:00:07]} Nc6 {[%emt 0:00:05]} 9. Be3 {[%emt 0:00:15]} Bd7 {
[%emt 0:01:16]} 10. Qd2 {[%emt 0:05:21]} Nxd4 {[%emt 0:00:07]} 11. Bxd4 {
[%emt 0:00:05]} Bc6 {[%emt 0:00:04]} 12. f3 {[%emt 0:01:02]} a5 {[%emt 0:00:09]
} 13. b3 {[%emt 0:02:50]} Nd7 {[%emt 0:00:14]} 14. Bf2 {[%emt 0:00:25]} Nc5 {
[%emt 0:00:37]} 15. Rab1 {[%emt 0:00:35]} Be5 {[%emt 0:02:21]} 16. Bd1 {
[%emt 0:02:27]} e6 {[%emt 0:03:23]} 17. Bc2 {[%emt 0:00:15]} Qe7 {[%emt 0:08:
12]} 18. Rfe1 {[%emt 0:10:43]} b6 {[%emt 0:06:26]} 19. a3 {[%emt 0:16:18]} Rfc8
{[%emt 0:10:22]} 20. f4 {[%emt 0:08:46]} Bg7 {[%emt 0:01:34]} 21. b4 {[%emt 0:
08:23]} axb4 {[%emt 0:07:40]} 22. axb4 {[%emt 0:00:06]} Ra3 {[%emt 0:08:22]}
23. Nd5 {[%emt 0:00:46]} exd5 {[%emt 0:01:13]} 24. exd5 {[%emt 0:00:08]} Ne6 {
[%emt 0:00:03]} 25. Bb3 {[%emt 0:02:56]} Bd7 {[%emt 0:28:07]} 26. Bxb6 {
[%emt 0:07:59]} Qf6 {[%emt 0:00:08]} 27. dxe6 {[%emt 0:00:05]} Bxe6 {[%emt 0:
00:01]} 28. Red1 {[%emt 0:09:30]} Bf5 {[%emt 0:03:26]} 29. Qc1 {[%emt 0:00:28]}
Ra6 30. Ba5 {[%emt 0:04:48]} Bxb1 {[%emt 0:02:17]} 31. Qxb1 {[%emt 0:00:11]}
Rb8 {[%emt 0:01:12]} 32. Qd3 {[%emt 0:00:58]} Qc3 {[%emt 0:00:59]} 33. Ba4 {
[%emt 0:00:41]} Qxd3 {[%emt 0:05:16]} 34. Rxd3 {[%emt 0:00:04]} Bf8 {[%emt 0:
00:09]} 35. Bb5 {[%emt 0:00:57]} Ra7 {[%emt 0:00:01]} 36. Kf2 {[%emt 0:00:33]}
Kg7 {[%emt 0:02:23]} 37. Kf3 {[%emt 0:06:07]} Kf6 {[%emt 0:01:08]} 38. g4 {
[%emt 0:02:04]} h6 {[%emt 0:00:14]} 39. h3 {[%emt 0:00:26]} h5 {[%emt 0:00:25]}
40. Rd2 {[%emt 0:01:57]} hxg4+ {[%emt 0:00:16]} 41. hxg4 {[%emt 0:30:26]} Be7 {
[%emt 0:31:55]} 42. Ke4 {[%emt 0:00:00]} Kg7 {[%emt 0:00:00]} 43. Kd5 {[%emt 0:
00:00]} Bf8 {[%emt 0:00:00]} 44. Bc6 {[%emt 0:00:00]} Be7 {[%emt 0:00:00]} 45.
Re2 {[%emt 0:00:00]} Kf8 {[%emt 0:00:00]} 46. Rh2 {[%emt 0:00:00]} Kg8 {
[%emt 0:00:00]} 47. Re2 {[%emt 0:00:00]} Kf8 {[%emt 0:00:00]} 48. Rh2 {[%emt 0:
00:00]} Kg8 {[%emt 0:00:00]} 49. Re2 {[%emt 0:00:00]} 1/2-1/2

[Event "XI Continental-ch America 2016"]
[Site "San Salvador"]
[Date "2016.06.01"]
[Round "7"]
[White "Mareco, Sandro"]
[Black "Perez, Matias"]
[Result "1/2-1/2"]
[ECO "D22"]
[WhiteElo "2625"]
[BlackElo "2437"]
[PlyCount "42"]
[EventDate "2016.??.??"]
[EventCountry "ESA"]
[TimeControl "40/5400+30:1800+30"]
[WhiteClock "1:12:40"]
[BlackClock "0:19:14"]

1. d4 {[%emt 0:00:00]} d5 {[%emt 0:00:31]} 2. c4 {[%emt 0:00:00]} dxc4 {
[%emt 0:00:25]} 3. Nf3 {[%emt 0:00:00]} a6 {[%emt 0:00:08]} 4. e3 {[%emt 0:01:
10]} b5 {[%emt 0:00:50]} 5. a4 {[%emt 0:00:05]} Bb7 {[%emt 0:00:05]} 6. b3 {
[%emt 0:00:12]} Nf6 {[%emt 0:03:45]} 7. bxc4 {[%emt 0:02:48]} bxc4 {[%emt 0:00:
07]} 8. Bxc4 {[%emt 0:00:04]} e6 {[%emt 0:00:07]} 9. O-O {[%emt 0:00:54]} c5 {
[%emt 0:03:00]} 10. Ba3 {[%emt 0:01:30]} Nbd7 {[%emt 0:02:26]} 11. Nbd2 {
[%emt 0:01:46]} cxd4 {[%emt 0:22:08]} 12. Bxf8 {[%emt 0:00:09]} Nxf8 {[%emt 0:
00:04]} 13. Nxd4 {[%emt 0:00:10]} Ng6 {[%emt 0:00:21]} 14. Rb1 {[%emt 0:00:25]}
Ra7 {[%emt 0:01:47]} 15. Rxb7 {[%emt 0:02:42]} Rxb7 {[%emt 0:00:07]} 16. Bxa6 {
[%emt 0:00:07]} Rc7 {[%emt 0:07:26]} 17. Bb5+ {[%emt 0:00:05]} Nd7 {[%emt 0:00:
52]} 18. Nc6 {[%emt 0:02:34]} Qa8 {[%emt 0:02:21]} 19. Qc1 {[%emt 0:07:12]} Ne7
{[%emt 0:03:08]} 20. Qa3 {[%emt 0:05:04]} Nxc6 {[%emt 0:12:09]} 21. Nc4 {
[%emt 0:00:53]} Qa7 {[%emt 0:19:29]} 1/2-1/2

[Event "XI Continental-ch America 2016"]
[Site "San Salvador"]
[Date "2016.06.01"]
[Round "7"]
[White "Ortiz Suarez, Isan Reynaldo"]
[Black "Lenderman, Aleksandr"]
[Result "1/2-1/2"]
[ECO "A06"]
[WhiteElo "2578"]
[BlackElo "2614"]
[PlyCount "88"]
[EventDate "2016.??.??"]
[EventCountry "ESA"]
[TimeControl "40/5400+30:1800+30"]
[WhiteClock "0:30:44"]
[BlackClock "0:35:55"]

1. Nf3 {[%emt 0:00:00]} d5 {[%emt 0:00:00]} 2. g3 {[%emt 0:00:00]} Nf6 {
[%emt 0:00:00]} 3. Bg2 {[%emt 0:00:06]} e6 {[%emt 0:00:00]} 4. O-O {[%emt 0:01:
29]} Be7 {[%emt 0:00:00]} 5. d4 {[%emt 0:00:26]} O-O {[%emt 0:00:01]} 6. c4 {
[%emt 0:00:17]} dxc4 {[%emt 0:00:14]} 7. Ne5 {[%emt 0:00:09]} Nc6 {[%emt 0:00:
19]} 8. Nxc6 {[%emt 0:00:57]} bxc6 {[%emt 0:00:04]} 9. Na3 {[%emt 0:00:06]}
Bxa3 {[%emt 0:00:30]} 10. bxa3 {[%emt 0:00:05]} Ba6 {[%emt 0:02:11]} 11. Qd2 {
[%emt 0:00:28]} Rb8 {[%emt 0:07:39]} 12. Qa5 {[%emt 0:02:17]} Rb6 {[%emt 0:00:
12]} 13. a4 {[%emt 0:00:59]} Qc8 {[%emt 0:15:36]} 14. Ba3 {[%emt 0:04:09]} Rd8
{[%emt 0:00:24]} 15. Bc5 {[%emt 0:02:43]} Rb2 {[%emt 0:02:18]} 16. e4 {[%emt 0:
04:12]} Nd7 {[%emt 0:09:29]} 17. Be7 {[%emt 0:04:48]} Re8 {[%emt 0:00:52]} 18.
Ba3 {[%emt 0:00:14]} Rb8 {[%emt 0:04:51]} 19. Rfd1 {[%emt 0:05:07]} c5 {
[%emt 0:04:22]} 20. Bxc5 {[%emt 0:08:19]} Nxc5 {[%emt 0:00:29]} 21. dxc5 {
[%emt 0:01:08]} Bb7 {[%emt 0:08:30]} 22. Rab1 {[%emt 0:23:47]} Bc6 {[%emt 0:04:
50]} 23. Rxb8 {[%emt 0:00:54]} Qxb8 {[%emt 0:00:05]} 24. Qa6 {[%emt 0:00:06]}
Rd8 {[%emt 0:07:15]} 25. Rxd8+ {[%emt 0:17:01]} Qxd8 {[%emt 0:00:07]} 26. Qxc4
{[%emt 0:00:08]} Qd1+ {[%emt 0:00:13]} 27. Bf1 {[%emt 0:00:04]} g6 {[%emt 0:08:
39]} 28. Kg2 {[%emt 0:03:01]} e5 {[%emt 0:02:25]} 29. a5 {[%emt 0:07:29]} Qe1 {
[%emt 0:00:28]} 30. Be2 {[%emt 0:00:46]} Qxa5 {[%emt 0:01:40]} 31. h4 {[%emt 0:
00:08]} Qd2 {[%emt 0:01:27]} 32. Bf3 {[%emt 0:01:32]} Qa5 {[%emt 0:03:03]} 33.
Bd1 {[%emt 0:05:17]} Qe1 {[%emt 0:00:29]} 34. Bf3 {[%emt 0:00:12]} a5 {[%emt 0:
05:20]} 35. a3 {[%emt 0:00:50]} Kg7 {[%emt 0:00:48]} 36. g4 {[%emt 0:02:26]} h6
{[%emt 0:01:10]} 37. Qc2 {[%emt 0:04:58]} Qa1 {[%emt 0:02:04]} 38. Qd3 {
[%emt 0:00:04]} Qc1 {[%emt 0:00:29]} 39. Qd8 {[%emt 0:00:32]} Qxa3 {[%emt 0:01:
26]} 40. Qe7 {[%emt 0:01:15]} Qc3 {[%emt 0:00:14]} 41. g5 {[%emt 0:30:10]} hxg5
{[%emt 0:32:30]} 42. hxg5 {[%emt 0:00:05]} Bb5 {[%emt 0:02:50]} 43. Qf6+ {
[%emt 0:00:00]} Kg8 {[%emt 0:00:00]} 44. Qd8+ {[%emt 0:00:00]} Kg7 {[%emt 0:00:
00]} 1/2-1/2

[Event "XI Continental-ch America 2016"]
[Site "San Salvador"]
[Date "2016.06.01"]
[Round "7"]
[White "Liang, Awonder"]
[Black "Cordova, Emilio"]
[Result "1/2-1/2"]
[ECO "C01"]
[WhiteElo "2410"]
[BlackElo "2602"]
[PlyCount "59"]
[EventDate "2016.??.??"]
[EventCountry "ESA"]
[TimeControl "40/5400+30:1800+30"]
[WhiteClock "0:06:29"]
[BlackClock "0:10:13"]

1. e4 {[%emt 0:00:00]} e6 {[%emt 0:00:00]} 2. d4 {[%emt 0:00:00]} d5 {[%emt 0:
00:00]} 3. exd5 {[%emt 0:00:04]} exd5 {[%emt 0:00:37]} 4. Nf3 {[%emt 0:00:08]}
Bd6 {[%emt 0:00:42]} 5. c4 {[%emt 0:00:53]} dxc4 {[%emt 0:02:44]} 6. Bxc4 {
[%emt 0:00:55]} Nf6 {[%emt 0:00:25]} 7. Qe2+ {[%emt 0:01:10]} Qe7 {[%emt 0:04:
27]} 8. Qxe7+ {[%emt 0:00:52]} Bxe7 {[%emt 0:00:05]} 9. O-O {[%emt 0:01:04]}
O-O {[%emt 0:00:10]} 10. Bf4 {[%emt 0:03:14]} Bd6 {[%emt 0:12:16]} 11. Bxd6 {
[%emt 0:08:05]} cxd6 {[%emt 0:00:12]} 12. Nc3 {[%emt 0:05:10]} Bg4 {[%emt 0:03:
45]} 13. Nd2 {[%emt 0:02:36]} Nc6 {[%emt 0:00:52]} 14. f3 {[%emt 0:04:39]} Bf5
{[%emt 0:05:11]} 15. Nde4 {[%emt 0:09:57]} Bxe4 {[%emt 0:00:09]} 16. fxe4 {
[%emt 0:09:05]} Nxd4 {[%emt 0:11:04]} 17. Rad1 {[%emt 0:03:02]} Nc6 {[%emt 0:
00:06]} 18. Rxd6 {[%emt 0:01:16]} Ne5 {[%emt 0:13:58]} 19. Bb3 {[%emt 0:04:05]}
Rfd8 {[%emt 0:01:19]} 20. Rxd8+ {[%emt 0:10:22]} Rxd8 {[%emt 0:00:05]} 21. Nd5
{[%emt 0:09:17]} Nxd5 {[%emt 0:00:27]} 22. Bxd5 {[%emt 0:00:10]} Rd7 {[%emt 0:
00:45]} 23. Rc1 {[%emt 0:02:02]} Kf8 {[%emt 0:00:39]} 24. Rc3 {[%emt 0:01:19]}
f5 {[%emt 0:11:31]} 25. Kf2 {[%emt 0:06:35]} Ke7 {[%emt 0:12:34]} 26. Ke3 {
[%emt 0:02:45]} Kf6 {[%emt 0:01:34]} 27. h3 {[%emt 0:06:11]} g5 {[%emt 0:04:44]
} 28. g3 {[%emt 0:00:32]} Ng6 {[%emt 0:02:37]} 29. exf5 {[%emt 0:01:16]} Rxd5 {
[%emt 0:01:19]} 30. Ke4 {[%emt 0:01:47] Ke5+ [%clk 0:10:13]} 1/2-1/2

[Event "XI Continental-ch America 2016"]
[Site "San Salvador"]
[Date "2016.06.01"]
[Round "7"]
[White "Kovalyov, Anton"]
[Black "Erenburg, Sergey"]
[Result "1-0"]
[ECO "D10"]
[WhiteElo "2602"]
[BlackElo "2587"]
[PlyCount "81"]
[EventDate "2016.??.??"]
[EventCountry "ESA"]
[TimeControl "40/5400+30:1800+30"]
[WhiteClock "0:37:40"]
[BlackClock "0:00:37"]

1. c4 {[%emt 0:00:00]} c6 {[%emt 0:00:00]} 2. d4 {[%emt 0:00:00]} d5 {[%emt 0:
00:00]} 3. cxd5 {[%emt 0:00:03]} cxd5 {[%emt 0:00:00]} 4. Nc3 {[%emt 0:00:06]}
Nf6 {[%emt 0:00:00]} 5. Bf4 {[%emt 0:00:30]} Nc6 {[%emt 0:00:00]} 6. e3 {
[%emt 0:00:13]} Bg4 {[%emt 0:04:58]} 7. Qb3 {[%emt 0:00:26]} Na5 {[%emt 0:00:
07]} 8. Qa4+ {[%emt 0:00:15]} Bd7 {[%emt 0:00:14]} 9. Qc2 {[%emt 0:00:08]} e6 {
[%emt 0:00:36]} 10. Bd3 {[%emt 0:00:39]} Nc6 {[%emt 0:00:47]} 11. Qe2 {[%emt 0:
04:21]} Be7 {[%emt 0:15:17]} 12. h3 {[%emt 0:01:54]} O-O {[%emt 0:03:46]} 13.
Nf3 {[%emt 0:01:31]} Qa5 {[%emt 0:00:08]} 14. O-O {[%emt 0:02:49]} Rfc8 {
[%emt 0:00:11]} 15. Rac1 {[%emt 0:08:41]} Be8 {[%emt 0:01:05]} 16. Rfd1 {
[%emt 0:02:03]} Qd8 {[%emt 0:00:57]} 17. a3 {[%emt 0:02:35]} a6 {[%emt 0:06:33]
} 18. e4 {[%emt 0:05:45]} dxe4 {[%emt 0:27:12]} 19. Nxe4 {[%emt 0:01:14]} Nd5 {
[%emt 0:19:09]} 20. Bg3 {[%emt 0:02:45]} Na7 {[%emt 0:01:51]} 21. Nc5 {[%emt 0:
01:12]} Qb6 {[%emt 0:01:11]} 22. b4 {[%emt 0:09:00]} Bb5 {[%emt 0:00:42]} 23.
Ne5 {[%emt 0:00:24]} Bxd3 {[%emt 0:01:07]} 24. Rxd3 {[%emt 0:01:54]} Rd8 {
[%emt 0:06:09]} 25. Qf3 {[%emt 0:01:44]} Nf6 {[%emt 0:04:04]} 26. Nc4 {[%emt 0:
04:06]} Qb5 {[%emt 0:02:24]} 27. Nxb7 {[%emt 0:03:08]} Rd5 {[%emt 0:01:23]} 28.
Ne3 {[%emt 0:03:52]} Qxd3 {[%emt 0:03:22]} 29. Nxd5 {[%emt 0:00:07]} Qxf3 {
[%emt 0:00:19]} 30. Nxe7+ {[%emt 0:00:07]} Kf8 {[%emt 0:00:04]} 31. gxf3 {
[%emt 0:00:13]} Kxe7 {[%emt 0:00:03]} 32. Rc7+ {[%emt 0:00:15]} Kf8 {[%emt 0:
00:01]} 33. Nd6 {[%emt 0:04:36]} Nb5 {[%emt 0:00:02]} 34. Rxf7+ {[%emt 0:00:56]
} Kg8 {[%emt 0:00:01]} 35. Rb7 {[%emt 0:00:37]} Nxa3 {[%emt 0:02:16]} 36. Be5 {
[%emt 0:00:45]} Nc2 {[%emt 0:00:38]} 37. Ne4 {[%emt 0:01:26]} Ne8 {[%emt 0:01:
22]} 38. Ng5 {[%emt 0:01:18]} a5 {[%emt 0:00:28]} 39. bxa5 {[%emt 0:00:11]} h6
{[%emt 0:00:31]} 40. Nxe6 {[%emt 0:00:32]} Rxa5 {[%emt 0:00:25]} 41. Re7 {
[%emt 0:30:29]} 1-0

[Event "XI Continental-ch America 2016"]
[Site "San Salvador"]
[Date "2016.06.01"]
[Round "7"]
[White "Gonzalez, Yuri"]
[Black "Arias, Daniel"]
[Result "1-0"]
[ECO "A48"]
[WhiteElo "2555"]
[BlackElo "2285"]
[PlyCount "99"]
[EventDate "2016.??.??"]
[EventCountry "ESA"]
[TimeControl "40/5400+30:1800+30"]
[WhiteClock "0:05:41"]
[BlackClock "0:13:05"]

1. d4 {[%emt 0:00:00]} Nf6 {[%emt 0:05:04]} 2. Nf3 {[%emt 0:00:00]} g6 {
[%emt 0:01:44]} 3. Bg5 {[%emt 0:00:00]} Bg7 {[%emt 0:01:06]} 4. Nbd2 {[%emt 0:
00:08]} c5 {[%emt 0:02:45]} 5. e3 {[%emt 0:00:11]} d6 {[%emt 0:01:28]} 6. c3 {
[%emt 0:01:30]} Nbd7 {[%emt 0:04:42]} 7. Bd3 {[%emt 0:01:49]} O-O {[%emt 0:00:
50]} 8. O-O {[%emt 0:00:32]} b6 {[%emt 0:02:42]} 9. a4 {[%emt 0:09:42]} a6 {
[%emt 0:05:29]} 10. Qe2 {[%emt 0:03:45]} Bb7 {[%emt 0:02:04]} 11. h3 {[%emt 0:
08:03]} Re8 {[%emt 0:06:20]} 12. Rfd1 {[%emt 0:01:39]} h6 {[%emt 0:05:53]} 13.
Bh4 {[%emt 0:00:52]} Nh5 {[%emt 0:05:15]} 14. g4 {[%emt 0:08:12]} Nhf6 {
[%emt 0:01:57]} 15. Bg3 {[%emt 0:04:38]} Nf8 {[%emt 0:03:53]} 16. dxc5 {
[%emt 0:07:31]} bxc5 {[%emt 0:01:36]} 17. e4 {[%emt 0:00:29]} N6d7 {[%emt 0:04:
43]} 18. Nc4 {[%emt 0:02:54]} Nb6 {[%emt 0:10:40]} 19. Ne3 {[%emt 0:05:41]} a5
{[%emt 0:01:43]} 20. Nd2 {[%emt 0:02:15]} Nfd7 {[%emt 0:02:36]} 21. Bb5 {
[%emt 0:01:42]} Qc8 {[%emt 0:08:41]} 22. h4 {[%emt 0:04:39]} Bc6 {[%emt 0:09:
07]} 23. h5 {[%emt 0:00:55]} Qb7 {[%emt 0:02:33]} 24. f3 {[%emt 0:06:58]} Bxb5
{[%emt 0:03:03]} 25. axb5 {[%emt 0:01:00]} a4 {[%emt 0:01:36]} 26. Ra3 {
[%emt 0:08:28]} Rf8 {[%emt 0:04:07]} 27. Kg2 {[%emt 0:01:02]} Rae8 {[%emt 0:00:
50]} 28. Rh1 {[%emt 0:02:08]} g5 {[%emt 0:01:01]} 29. Nf5 {[%emt 0:00:51]} Kh7
{[%emt 0:00:03]} 30. Rha1 {[%emt 0:03:29]} Bf6 {[%emt 0:00:33]} 31. R1a2 {
[%emt 0:03:34]} Be5 {[%emt 0:00:45]} 32. b3 {[%emt 0:03:28]} Bxg3 {[%emt 0:00:
35]} 33. Kxg3 {[%emt 0:00:26]} axb3 {[%emt 0:00:11]} 34. Nxb3 {[%emt 0:00:20]}
Nc8 {[%emt 0:00:14]} 35. Ra6 {[%emt 0:01:57]} Ndb6 {[%emt 0:00:46]} 36. e5 {
[%emt 0:01:06]} dxe5 {[%emt 0:00:53]} 37. Nxc5 {[%emt 0:00:57]} Qc7 {[%emt 0:
00:24]} 38. Ne4 {[%emt 0:00:47]} f6 {[%emt 0:00:11]} 39. c4 {[%emt 0:03:13]} e6
{[%emt 0:00:13]} 40. c5 {[%emt 0:00:36]} exf5 {[%emt 0:00:53]} 41. cxb6 {
[%emt 0:30:14]} Qc1 {[%emt 0:30:48]} 42. b7 {[%emt 0:00:00]} Ne7 {[%emt 0:00:
00]} 43. Nxf6+ {[%emt 0:00:00]} Rxf6 {[%emt 0:00:00]} 44. Rxf6 {[%emt 0:00:00]}
Nd5 {[%emt 0:00:00]} 45. Rc6 {[%emt 0:00:00]} Qg1+ {[%emt 0:00:00]} 46. Qg2 {
[%emt 0:00:00]} Qe1+ {[%emt 0:00:00]} 47. Kh2 {[%emt 0:00:00]} Qh4+ {[%emt 0:
00:00]} 48. Qh3 {[%emt 0:00:10]} Qe1 {[%emt 0:00:00]} 49. Rc8 {[%emt 0:00:43]}
fxg4 {[%emt 0:00:00]} 50. Qxg4 {[%emt 0:00:45]} 1-0

[Event "XI Continental-ch America 2016"]
[Site "San Salvador"]
[Date "2016.06.01"]
[Round "7"]
[White "Kevel, Oliva"]
[Black "Morovic Fernandez, Ivan"]
[Result "0-1"]
[ECO "E86"]
[WhiteElo "2500"]
[BlackElo "2573"]
[PlyCount "81"]
[EventDate "2016.??.??"]
[EventCountry "ESA"]
[TimeControl "40/5400+30:1800+30"]
[WhiteClock "0:13:48"]
[BlackClock "0:06:13"]

1. d4 {[%emt 0:00:00]} Nf6 {[%emt 0:00:00]} 2. c4 {[%emt 0:00:00]} d6 {[%emt 0:
00:00]} 3. Nc3 {[%emt 0:00:00]} g6 {[%emt 0:00:00]} 4. e4 {[%emt 0:00:01]} Bg7
{[%emt 0:00:00]} 5. f3 {[%emt 0:00:06]} O-O {[%emt 0:00:45]} 6. Be3 {[%emt 0:
00:04]} e5 {[%emt 0:11:42]} 7. Nge2 {[%emt 0:00:20]} c6 {[%emt 0:01:26]} 8. Qd2
{[%emt 0:00:06]} Nbd7 {[%emt 0:00:29]} 9. d5 {[%emt 0:00:36]} cxd5 {[%emt 0:01:
36]} 10. cxd5 {[%emt 0:00:06]} a6 {[%emt 0:01:50]} 11. g4 {[%emt 0:00:20]} h5 {
[%emt 0:04:20]} 12. g5 {[%emt 0:00:32]} Nh7 {[%emt 0:02:17]} 13. Nc1 {[%emt 0:
00:09]} f6 {[%emt 0:02:25]} 14. gxf6 {[%emt 0:01:01]} Qxf6 {[%emt 0:03:17]} 15.
Be2 {[%emt 0:00:56]} Rf7 {[%emt 0:15:10]} 16. Nd3 {[%emt 0:03:32]} Ndf8 {
[%emt 0:09:38]} 17. O-O-O {[%emt 0:06:44]} Bd7 {[%emt 0:06:08]} 18. Kb1 {
[%emt 0:07:40]} Qe7 {[%emt 0:01:47]} 19. Rhg1 {[%emt 0:05:41]} Bf6 {[%emt 0:01:
53]} 20. f4 {[%emt 0:17:11]} exf4 {[%emt 0:05:48]} 21. Nxf4 {[%emt 0:03:09]}
Rg7 {[%emt 0:07:35]} 22. Bd4 {[%emt 0:09:04]} Bxd4 {[%emt 0:05:07]} 23. Qxd4 {
[%emt 0:00:08]} Nf6 {[%emt 0:00:15]} 24. Rdf1 {[%emt 0:06:38]} Ng4 {[%emt 0:00:
14]} 25. Bxg4 {[%emt 0:00:46]} hxg4 {[%emt 0:02:07]} 26. Nd3 {[%emt 0:04:06]}
Re8 {[%emt 0:01:04]} 27. Re1 {[%emt 0:00:47]} Nh7 {[%emt 0:01:46]} 28. e5 {
[%emt 0:05:58]} Bf5 {[%emt 0:00:30]} 29. exd6 {[%emt 0:00:28]} Qxe1+ {[%emt 0:
01:00]} 30. Rxe1 {[%emt 0:00:04]} Rxe1+ {[%emt 0:00:03]} 31. Kc2 {[%emt 0:00:
04]} Ng5 {[%emt 0:01:31]} 32. Qf2 {[%emt 0:12:26]} Nf3 {[%emt 0:00:54]} 33. Na4
{[%emt 0:00:43]} Re2+ {[%emt 0:00:25]} 34. Qxe2 {[%emt 0:00:11]} Nd4+ {[%emt 0:
00:02]} 35. Kd2 {[%emt 0:00:06]} Nxe2 {[%emt 0:00:02]} 36. Kxe2 {[%emt 0:00:09]
} Rd7 {[%emt 0:02:13]} 37. Ndc5 {[%emt 0:01:29]} Rxd6 {[%emt 0:00:26]} 38. Nc3
{[%emt 0:00:06]} g5 {[%emt 0:02:54]} 39. Kf2 {[%emt 0:01:22]} Rh6 {[%emt 0:02:
03]} 40. Kg3 {[%emt 0:00:56]} b5 {[%emt 0:03:05]} 41. b4 {[%emt 0:32:57]} 0-1